Cogmind - Beta 16 @@@ ROGUE MODE // 2026.01.05 @ 16:35:39 Player: MrFartsburg Result: Destroyed by ES-0WF(R) with Subdweller Beam Cannon Performance ------------- Evolutions (0) 0 Regions Visited (3) 600 Robots Destroyed (20) 100 Value Destroyed (568) 568 Prototype IDs (14) 280 Alien Tech Used (0) 0 Bonus (-428) -428 TOTAL SCORE: 1120 Bonus ------- Friendly Fire -428 Cogmind --------- Core Integrity 0/250 Matter 278/300 Energy 80/200 System Corruption 0% Temperature Warm (155) Movement Rolling (120) Ox1 Location -10/Subcaves Parts ------- > --- POWER (1) -------- Subdweller Power Source > --- PROPULSION (2) --- Subdweller Monowheel > --- UTILITY (2) ------ Large Storage Unit > --- WEAPON (2) ------- Subdweller Beam Cannon > --- INVENTORY (15) --- Improved Heat Sink Disposable Heat Sink Structural Scanner Subdweller Optics Subdweller Laser Subdweller Laser Subdweller Beam Cannon Grenade Launcher Flamer Scrap Shield Fragment (48) Scrap Shield Fragment (48) Peak State ------------ > --- POWER ------------ Subdweller Power Source Neutrino Core > --- PROPULSION ------- Subdweller Monowheel Flight Unit > --- UTILITY ---------- Disposable Heat Sink Large Storage Unit Rainbow Chip > --- WEAPON ----------- Assault Rifle Makeshift Shrapnel Gun Rocket Launcher > --- INVENTORY -------- Improved Heat Sink Structural Scanner Subdweller Laser Subdweller Beam Cannon Grenade Launcher Flamer [Rating: 35] Favorites ----------- Power Neutrino Core Engine Light Ion Engine Power Core Neutrino Core Propulsion Aluminum Leg Leg Aluminum Leg Wheel Subdweller Monowheel Flight Unit Flight Unit Utility Large Storage Unit Device Disposable Heat Sink Storage Large Storage Unit Processor Rainbow Chip Protection Scrap Shield Weapon Assault Rifle Energy Gun EM Pulse Gun Energy Cannon Subdweller Beam Cannon Ballistic Gun Assault Rifle Launcher Rocket Launcher Build | -11 -10 -10 -10 ------- Run | Yrd Mat Min Sub Slots Evolved . | . . . . Power . | . . . . Propulsion . | . . . . Utility . | . . . . Weapon . | . . . . Parts Attached 22 | 6 3 . 13 Power 4 | 1 . . 3 Engine 3 | 1 . . 2 Core 1 | . . . 1 Reactor . | . . . . Propulsion 4 | 2 . . 2 Treads . | . . . . Leg 2 | 2 . . . Wheel 1 | . . . 1 Hover . | . . . . Flight 1 | . . . 1 Utility 7 | 1 2 . 4 Device 2 | . 1 . 1 Storage 2 | 1 1 . . Processor 2 | . . . 2 Hackware . | . . . . Protection 1 | . . . 1 Artifact . | . . . . Weapon 7 | 2 1 . 4 Energy Gun 2 | 1 . . 1 Energy Cannon 1 | . . . 1 Ballistic Gun 2 | 1 . . 1 Ballistic Cannon . | . . . . Launcher 2 | . 1 . 1 Special Weapon . | . . . . Impact Weapon . | . . . . Slashing Weapon . | . . . . Piercing Weapon . | . . . . Special Melee Weapon . | . . . . Unidentified Prototypes . | . . . . Parts Lost 7 | . . . 7 Power 2 | . . . 2 Propulsion 1 | . . . 1 Utility 1 | . . . 1 Weapon 3 | . . . 3 Highest Loss Streak 4 | . . . 4 To Critical Strikes . | . . . . Average Backups 4 | . 3 4 4 Power . | . . . . Propulsion . | . . 1 . Utility 1 | . 1 2 1 Weapon 1 | . . . 2 Tool/Special . | . . . . Unused Backups 14 | . 7 . 7 Power . | . . . . Propulsion 3 | . 2 . 1 Utility 6 | . 3 . 3 Weapon 4 | . 1 . 3 Tool/Special 1 | . 1 . . Average Slot Usage (%) 85 | . 96 100 81 Engine 5 | . 14 14 2 Core 7 | . . . 9 Leg 10 | . 28 28 5 Wheel 1 | . . . 2 Flight 4 | . . . 6 Device 8 | . 11 14 7 Storage 12 | . 14 14 12 Processor 5 | . . . 7 Ballistic Gun 16 | . 14 14 16 Launcher 9 | . 11 14 8 Peak Build Rating 35 | 6 7 7 35 Average Rating 22 | 4 6 7 27 On Entrance 5 | . 6 7 7 Avg Prop Armor Cover (%) 2 | . . . 2 Naked Turns . | . . . . Heaviest Build 52 | 9 29 29 52 Greatest Support 20 | 20 20 20 20 Greatest Overweight (x) 10 | . 1 1 10 Average Overweight (x) 2 | . . 1 3 Largest Inventory Capacity 15 | 5 15 15 15 Average Capacity 13 | 5 8 15 14 Most Carried 12 | 1 5 5 12 Average Carried 4 | . 3 4 5 Final Capacity 15 | 5 15 15 15 Final Carried 11 | . 3 5 11 Class Distribution -------------------- 41% | Gunner 40% | Mutant 17% | Scavenger-Gunner Dominant Class ---------------- Mutant | -10/Materials Mutant | -10/Mines Gunner | -10/Subcaves Resources | -11 -10 -10 -10 ----------- Run | Yrd Mat Min Sub Matter Collected 814 | 372 103 . 339 Remotely . | . . . . Salvage Created 604 | 68 238 . 298 Parts 34 | 4 15 . 15 Haulers Intercepted . | . . . . Recyclers Shooed . | . . . . Parts Field Recycled . | . . . . Retrieved Matter . | . . . . Parts Self-Destructed 21 | . . . 21 Prevented . | . . . . Parts Restored . | . . . . Kills | -11 -10 -10 -10 ------- Run | Yrd Mat Min Sub Combat Hostiles Destroyed 14 | 1 5 . 8 Guns 5 | 1 1 . 3 AOE 9 | . 4 . 5 Classes Destroyed 6 | 2 2 . 2 Worker 3 | 1 2 . . Builder 1 | . 1 . . Mechanic 1 | . 1 . . Grunt 6 | 1 5 . . Subdweller 8 | . . . 8 Scientist 1 | . . . 1 Thug 1 | . . . 1 Best Kill Streak 5 | 1 3 . 5 Combat Bots Only 5 | 1 2 . 5 Max Kills in Single Turn 2 | 1 2 . 2 Gunslinging . | . . . . Exploded 2 | . 1 . 2 Melee . | . . . . Uniques/NPCs Destroyed . | . . . . Combat | -11 -10 -10 -10 -------- Run | Yrd Mat Min Sub Hostile Shots Fired 53 | 2 9 . 42 Missed 16 | 1 4 . 11 Hits 37 | 1 5 . 31 Projectile 37 | 1 5 . 31 Critical Strikes 1 | . . . 1 Damage Taken 936 | 12 65 . 859 Core 260 | . 14 . 246 Absorbed by Shields . | . . . . Core Remaining (%) 100 | 100 . . . Volleys Fired 42 | 5 9 . 28 Largest 3 | 2 2 . 3 Hottest 124 | 60 50 . 124 Shots Fired 78 | 7 14 . 57 Gun 53 | 7 9 . 37 Cannon 9 | . . . 9 Launcher 16 | . 5 . 11 Special . | . . . . Kinetic 49 | 5 9 . 35 Thermal 11 | . . . 11 Explosive 16 | . 5 . 11 Electromagnetic 2 | 2 . . . Robot Hit Streak 6 | 4 6 . 6 Robot Miss Streak 3 | 1 3 . 2 Penetration Max . | . . . . Secondary Targets . | . . . . Shots Hit Robots 43 | 5 8 . 30 Core Hits 47 | 3 16 . 28 Critical Kills . | . . . . Critical Parts Destroyed . | . . . . Critical Strikes . | . . . . Melee Attacks . | . . . . Impact . | . . . . Slashing . | . . . . Piercing . | . . . . Sneak Attacks . | . . . . Combat Hostiles . | . . . . Follow-up Attacks . | . . . . Damage Inflicted 1769 | 59 316 . 1394 Guns 479 | 59 67 . 353 Cannons 139 | . . . 139 Explosions 1145 | . 243 . 902 Melee . | . . . . Ramming 6 | . 6 . . Kinetic 453 | 33 67 . 353 Thermal 139 | . . . 139 Explosive 1145 | . 243 . 902 Electromagnetic 26 | 26 . . . Impact . | . . . . Slashing . | . . . . Piercing . | . . . . Highest Corruption . | . . . . Average Corruption . | . . . . Corruption Purged . | . . . . Corruption Blocked . | . . . . Overload Shots . | . . . . Overflow Damage 22 | . . . 22 Projectiles . | . . . . Explosions 22 | . . . 22 Melee . | . . . . Knockbacks . | . . . . Impact . | . . . . Kinetic . | . . . . Secondary . | . . . . Self-Inflicted Damage 137 | . 11 . 126 Shots 9 | . 2 . 7 Rammed . | . . . . Targets Rammed 2 | 1 1 . . Kicked 2 | 1 1 . . Crushed . | . . . . Highest Temperature 231 | . 2 . 231 Average Temperature 96 | . 2 . 99 Received Heat Transfer 512 | 6 30 . 476 Siege Activations . | . . . . Martial Activations . | . . . . Shielding Activations . | . . . . Robots Disrupted . | . . . . Combat Hostiles . | . . . . Robots Corrupted . | . . . . Combat Hostiles . | . . . . Parts Fried . | . . . . Impact Corruptions . | . . . . Robots Melted . | . . . . Combat Hostiles . | . . . . Parts Melted . | . . . . Heat Transferred 185 | . . . 185 Parts Sabotaged . | . . . . Parts Stolen . | . . . . Parts Stripped . | . . . . Power Chain Reactions . | . . . . Alert | -11 -10 -10 -10 ------- Run | Yrd Mat Min Sub Maximum Alert Level . | . . . . Low Security (%) 100 | 100 100 100 . Level 1 . | . . . . Level 2 . | . . . . Level 3 . | . . . . Level 4 . | . . . . Level 5 . | . . . . High Security . | . . . . Max Security . | . . . . Peak Influence 102 | 20 102 12 . Initial 12 | . 6 12 . Average 17 | 1 30 1 . Influence Increases 231 | 25 206 . . Destroy 0b10 Robot/C 120 | 20 100 . . Destroy 0b10 Robot/NC 25 | 5 20 . . Destroy Leader 30 | . 30 . . Successful Hack 5 | . 5 . . Disable Machine 15 | . 15 . . Destroy Structure 36 | . 36 . . Influence Decreases 231 | 15 183 33 . Entered New Map 25 | . 4 21 . Time Decay 206 | 15 179 12 . Squads Dispatched 2 | . 2 . . Investigation 1 | . 1 . . Extermination . | . . . . Reinforcement 1 | . 1 . . Assault . | . . . . Garrison . | . . . . Intercept . | . . . . Searches Triggered . | . . . . Construction Impeded . | . . . . Haulers Reinforced . | . . . . Active Scanning Responses . | . . . . Cargo Convoy Interrupts . | . . . . Stealth | -11 -10 -10 -10 --------- Run | Yrd Mat Min Sub Distress Signals . | . . . . Communications Jammed . | . . . . Distress Signals . | . . . . Times Spotted 24 | 1 8 . 15 Peak Tracking Total 6 | 1 4 . 6 Tactical Retreats . | . . . . Traps | -11 -10 -10 -10 ------- Run | Yrd Mat Min Sub Traps Triggered . | . . . . Indirectly . | . . . . Trap Hack Attempts . | . . . . Triggered . | . . . . Disarmed . | . . . . Reprogrammed . | . . . . Reused . | . . . . Traps Extracted . | . . . . Installed . | . . . . Triggered . | . . . . Machines | -11 -10 -10 -10 ---------- Run | Yrd Mat Min Sub Machines Disabled 3 | . 1 . 2 Max in Single Turn 2 | . 1 . 2 Machines Repaired . | . . . . Machines Dismantled . | . . . . Machines Sabotaged . | . . . . Overloaded Fab Kills . | . . . . Hacking | -11 -10 -10 -10 --------- Run | Yrd Mat Min Sub Machines Accessed 4 | . 3 . 1 Terminals 2 | . 2 . . Fabricators . | . . . . Repair Stations . | . . . . Recycling Units 1 | . 1 . . Scanalyzers . | . . . . Garrison Access . | . . . . Total Hacks 21 | . 12 . 9 Successful 17 | . 8 . 9 Failed 4 | . 4 . . Catastrophic . | . . . . Database Lockouts . | . . . . Manual 1 | . . . 1 Terminals 9 | . 9 . . Fabricators . | . . . . Repair Stations . | . . . . Recycling Units 3 | . 3 . . Scanalyzers . | . . . . Garrison Access . | . . . . Terminal Hacks 14 | . 5 . 9 Record 11 | . 3 . 8 Prototype ID Bank 1 | . 1 . . Investigation Status 1 | . 1 . . Proto ID Catalog 1 | . . . 1 Fabricator Hacks . | . . . . Repair Station Hacks . | . . . . Recycling Unit Hacks 3 | . 3 . . Recycle Component 2 | . 2 . . Process 1 | . 1 . . Scanalyzer . | . . . . Garrison Access Hacks . | . . . . Unauthorized Hacks . | . . . . Terminals . | . . . . Fabricators . | . . . . Repair Stations . | . . . . Recycling Units . | . . . . Scanalyzers . | . . . . Garrison Access . | . . . . Data Cores Recovered . | . . . . Used . | . . . . Hacking Detections 2 | . 2 . . Full Trace Events 2 | . 2 . . Feedback Events . | . . . . Feedback Blocked . | . . . . Robot Schematics Acquired . | . . . . Robots Built . | . . . . Authchips . | . . . . Time . | . . . . Total Robot Build Rating . | . . . . Part Schematics Acquired . | . . . . Parts Built . | . . . . Authchips . | . . . . Time . | . . . . Total Part Build Rating . | . . . . Part Studies Acquired . | . . . . Parts Repaired . | . . . . Time . | . . . . Parts Recycled 2 | . 2 . . Recycled Matter 151 | . 151 . . Retrieved Matter . | . . . . Retrieved Components . | . . . . Parts Scanalyzed . | . . . . Part Schematics Acquired . | . . . . Parts Damaged . | . . . . Bothacking | -11 -10 -10 -10 ------------ Run | Yrd Mat Min Sub Used RIF Installer . | . . . . Robots Hacked . | . . . . Non-combat . | . . . . Combat . | . . . . Robot Hacks Applied . | . . . . Relay Couplers Released . | . . . . Fabnet Peak Effective % . | . . . . Robots Rewired . | . . . . Allies Hacked . | . . . . Hacks Repelled . | . . . . Allies | -11 -10 -10 -10 -------- Run | Yrd Mat Min Sub Total Allies . | . . . . Largest Group . | . . . . Highest-Rated Group . | . . . . Highest-Rated Ally . | . . . . Total Orders . | . . . . Ally Attacks . | . . . . Total Damage . | . . . . Kills . | . . . . Allies Corrupted . | . . . . Allies Melted 1 | . . . 1 Intel | -11 -10 -10 -10 ------- Run | Yrd Mat Min Sub Active Infowar (turns) 832 | . 450 255 127 Structural 832 | . 450 255 127 Robot Analysis Total . | . . . . Derelict Logs Recovered . | . . . . Drone Launches . | . . . . Drone Recoveries . | . . . . Exploration | -11 -10 -10 -10 ------------- Run | Yrd Mat Min Sub Turns Passed 3895 | 190 564 255 2886 Spaces Moved 1567 | 148 376 134 909 Core 19 | 19 . . . Treads . | . . . . Legs 861 | 129 376 134 222 Wheels 498 | . . . 498 Hover . | . . . . Flight 189 | . . . 189 Fastest Speed 50 | 50 120 190 120 Average Speed 235 | 111 137 190 302 Slowest Speed 840 | 120 190 190 840 Overloaded Moves . | . . . . Propulsion Burnouts . | . . . . Robots Hopped . | . . . . Potential Cave-ins . | . . . . Cave-ins Triggered . | . . . . Exploration Rate (%) 28 | 7 41 33 34 Regions Visited 3 Branch Regions 2 Pre-discovered Areas . | . . . . Known Exits Taken . | . . . . Unknown Exits Taken 3 | 1 1 1 . Scrap Searched 5 | . . 1 4 Spaces Dug 36 | . . . 36 Terrain Destroyed 98 | . 31 . 67 Melee . | . . . . Projectile . | . . . . AOE 98 | . 31 . 67 Terrain Rammed . | . . . . Walls Destroyed . | . . . . Machines Disabled . | . . . . Actions | -11 -10 -10 -10 --------- Run | Yrd Mat Min Sub Total 1707 | 166 413 135 993 Wait 12 | 1 7 . 4 Move 1564 | 147 375 133 909 Hop . | . . . . Pick Up 44 | 6 12 2 24 Fast Attach . | . . . . Attach 18 | 6 1 . 11 Detach . | . . . . Swap 10 | . 2 . 8 Drop 15 | . 6 . 9 Fire 42 | 5 9 . 28 Melee . | . . . . Ram . | . . . . Kick 2 | 1 1 . . Crush . | . . . . Escape Stasis . | . . . . Rewire . | . . . . Trap . | . . . . Miscellaneous . | . . . . Route ------- -11/Scrapyard -10/Materials -10/Mines (discovered 2 exits: [*Mat] / *Sub) -10/Subcaves History --------- Turn | Location | Event 2 | -11/Scrapyard | Met Revision 17 169 | -11/Scrapyard | Discovered new exit (range 8) 191 | -11/Scrapyard | Entered Materials 326 | -10/Materials | Build established: Mutant 744 | -10/Materials | Discovered new exit (range 7) 755 | -10/Materials | Entered Mines 762 | -10/Mines | Received a Rocket Launcher from a helpful Derelict 844 | -10/Mines | Discovered new exit (range 6) 984 | -10/Mines | Discovered new exit (range 10) 1010 | -10/Mines | Entered Subcaves 1011 | -10/Subcaves | Approached by a straggling Scientist 1115 | -10/Subcaves | Ambushed by swarm of Subdwellers 1115 | -10/Subcaves | Ambushed by Subdwellers from Twisted Machinery 1130 | -10/Subcaves | Ambushed by Subdwellers from Twisted Machinery 1509 | -10/Subcaves | Visited 4L-MR0's lab 1571 | -10/Subcaves | Core integrity fell below 50% 1589 | -10/Subcaves | Found Rainbow Chip 1591 | -10/Subcaves | Attached Rainbow Chip, gained temporary slots: Power, Propulsion, Utility, Weapon 1902 | -10/Subcaves | Build established: Gunner 2690 | -10/Subcaves | Shifting Twisted Machinery released Shrapnel Trap 2716 | -10/Subcaves | Shifting Twisted Machinery released Sub. Monowheel 3307 | -10/Subcaves | Shifting Twisted Machinery released Flamer 3511 | -10/Subcaves | Build established: Scavenger-Gunner 3594 | -10/Subcaves | Disturbed a concealed Subdweller 3826 | -10/Subcaves | Shifting Twisted Machinery released Piercing Trap 3889 | -10/Subcaves | Core integrity fell below 20% 3896 | -10/Subcaves | Destroyed by ES-0WF(R) with Subdweller Beam Cannon Last Messages --------------- NQ-ARI(u) builds Twisted Machinery. 2K-TYG(u) deconstructs Twisted Machinery. NQ-ARI(u) builds Twisted Machinery. 2K-TYG(u) deconstructs Twisted Machinery. NQ-ARI(u) builds Twisted Machinery. 2K-TYG(u) deconstructs Twisted Machinery. Piercing Trap falls loose from the Twisted Machinery. Mak. Shrapnel Gun destroyed. Assault Rifle destroyed. Temporary Weapon slot lost. Rainbow Chip destroyed. Temporary Power slot lost. Temporary Utility slot lost. Sub. Power Source destroyed. [Achievement: First Step to Greatness] The achievement interface (ESC then open Records) offers an effective way to explore all of your earned achievements as well as seek out new goals for future runs. Map ----- +----------------------------------------------------+ | ?????????????????## ##### #??????????????## | | ?????????????????# #?????????????## | | ????????????????## #?????????????# | | ????????????????#""& ##?????????????## | | ????????????????#" ##???????????????# | | ????????????????# ##????????????????# | | ????????????????## ##????????????????# | | ?????????????????# #????????????????# | | ?????????????????# #????????????????## | | ?????????????????# ##????????????????## | | ?????????????????# ##?????????????????# | | ?????????????????# #### ##?????????????????# | | ?????????????????##???# #???????????????### | | ??????????????????????### ##???????????????# | | ????????????????#??????# #?????????????### | | ???????????????## ?????# ##?????????????# | | ???????????????# ????# ##?????????????## ### | | ???????????????? ???## #????????????# ## # | | ?????????????????# ??# ##????????????# ## | | ??????????????????# ### #????????????# # | | ???????????????????# ##????????????# ## | | ???????????????????## #????????????# # | | ????????????????????##### #????????????## ####? | | ????????????????????????# ##????????????##????? | | ?????????????????????#### ##?????????????????? | | ?????????????????????# @ #?????????????????? | | ?????????????????????# ! #?????????????????? | | ?????????????????????# ## ###?????????????????? | | ???????????????????? RR?# #???????????????????? | | ?????????????????? ?# #???????????????????? | | ?????????????????## "?# #???????????????????? | | ??????????????????## "??##"#???????????????????? | | ???????????????????## #????"#???????????????????? | | ????????????????????##????? "???????????????????? | | ???????????????????????????##???????????????????? | | ????????????????????????????????????????????????? | | ????????????????????????????????????????????????? | | ????????????????????????????????????????????????? | | ????????????????????????????????????????????????? | | ????????????????????????????????????????????????? | | ????????????????????????????????????????????????? | | ????????????????????????????????????????????????? | | ????????????????????????????????????????????????? | | ????????????????????????????????????????????????? | | ????????????????????????????????????????????????? | | ????????????????????????????????????????????????? | | ????????????????????????????????????????????????? | | ????????????????????????????????????????????????? | | ????????????????????????????????????????????????? | | ????????????????????????????????????????????????? | +----------------------------------------------------+ Best States ------------- Heat Dissipation 25 Coolant Potential 50 Energy Generation 29 Energy Capacity 415 Matter Stores 400 Matter Capacity 400 Sight Range 16 Terrain Scan Density 10 Armor Coverage 800 Evasion (%) 55 Targeting Accuracy 5 Item Schematics ----------------- None Robot Schematics ------------------ None Fabricated ------------ Nothing Repaired ---------- Nothing Studied --------- None Alien Tech Used ----------------- None Achievements -------------- Backstab Do Not Disturb First Step to Greatness For Emergencies Only Librarian Mistaken Identity One Hack Too Far Organ Harvest There's More Where That Came From Uninvited Guest Challenges ------------ None Game ------ Seed MakeshiftSeismicInitializer Manual? 0 Play Time 00:58:45 Cumulative 0.9 hours Start 2026.01.05 @ 15:21:47 End 2026.01.05 @ 16:35:39 Sessions 1 Manual Loads 0 Difficulty Rogue Special Mode None Game No. 1 Rogue 1 Adventurer 0 Explorer 0 Win Type - Total 0 Types 0/0/0/0/0/0/0/0/0/0 Lore% 0 Gallery% 1 Achievement% 2 Wizard Run 0 Options --------- Layout 1 ASCII 0 Keyboard 0 Movement Numpad Keybinds 0 Fullscreen 1 Font 32/SmallcapsGlow Map View 50x35 Zoom Use 0% Tactical HUD 0 Map Filters NONE Filters NONE Steam 1 RUN: f0ad4c30-6c64-4825-8bbd-a4c049639808